Cogmind - Beta 15 @@@ ROGUE MODE // 2025.07.26 @ 23:19:59 Player: bugsniper Result: Self-destructed Performance ------------- Evolutions (2) 1000 Regions Visited (3) 600 Robots Destroyed (14) 70 Value Destroyed (490) 490 Prototype IDs (0) 0 Alien Tech Used (0) 0 Bonus (0) 0 TOTAL SCORE: 2160 Bonus ------- None Cogmind --------- Core Integrity 536/550 Matter 237/300 Energy 250/250 System Corruption 0% Temperature Cool (0) Movement Walking (190) Ox1 Location -8/Materials Parts ------- > --- POWER (1) -------- Ion Engine > --- PROPULSION (3) --- Aluminum Leg Aluminum Leg > --- UTILITY (5) ------ Medium Storage Unit Targeting Computer Improved Light Armor Plating Hacking Suite > --- WEAPON (2) ------- Light Cannon Light Cannon > --- INVENTORY (10) --- Light Treads Light Treads Light Treads Targeting Computer Riot Gun Riot Gun Light Cannon Light Cannon Grenade Launcher Makeshift Axe Peak State ------------ > --- POWER ------------ Ion Engine > --- PROPULSION ------- Aluminum Leg Aluminum Leg > --- UTILITY ---------- Medium Storage Unit Targeting Computer Improved Light Armor Plating Hacking Suite > --- WEAPON ----------- Light Cannon Light Cannon > --- INVENTORY -------- Light Treads Light Treads Light Treads Targeting Computer Riot Gun Riot Gun Light Cannon Light Cannon Grenade Launcher Makeshift Axe [Rating: 14] Favorites ----------- Power Ion Engine Engine Ion Engine Propulsion Aluminum Leg Leg Aluminum Leg Utility Targeting Computer Device Improved Heat Sink Storage Medium Storage Unit Processor Targeting Computer Hackware Hacking Suite Protection Improved Light Armor Plating Weapon Light Cannon Energy Gun EM Pulse Gun Ballistic Gun Assault Rifle Ballistic Cannon Light Cannon Launcher Grenade Launcher Slashing Weapon Makeshift Axe Build | -11 -10 -10 -8 ------- Run | Yrd Mat Sub Mat Slots Evolved 4 | . . . 4 Power . | . . . . Propulsion 1 | . . . 1 Utility 3 | . . . 3 Weapon . | . . . . Parts Attached 12 | . 6 4 2 Power 1 | . 1 . . Engine 1 | . 1 . . Core . | . . . . Reactor . | . . . . Propulsion . | . . . . Treads . | . . . . Leg . | . . . . Wheel . | . . . . Hover . | . . . . Flight . | . . . . Utility 5 | . 3 . 2 Device 1 | . 1 . . Storage 1 | . 1 . . Processor 1 | . 1 . . Hackware 1 | . . . 1 Protection 1 | . . . 1 Artifact . | . . . . Weapon 6 | . 2 4 . Energy Gun . | . . . . Energy Cannon . | . . . . Ballistic Gun . | . . . . Ballistic Cannon 4 | . 2 2 . Launcher 1 | . . 1 . Special Weapon . | . . . . Impact Weapon . | . . . . Slashing Weapon 1 | . . 1 . Piercing Weapon . | . . . . Special Melee Weapon . | . . . . Unidentified Prototypes . | . . . . Parts Lost . | . . . . Power . | . . . . Propulsion . | . . . . Utility . | . . . . Weapon . | . . . . Highest Loss Streak . | . . . . To Critical Strikes . | . . . . Average Backups 9 | . 8 10 10 Power . | . . . . Propulsion 3 | . 3 3 3 Utility . | . . 1 1 Weapon 5 | . 4 6 6 Tool/Special . | . . . . Unused Backups 24 | . 15 1 8 Power 1 | . 1 . . Propulsion 9 | . 6 . 3 Utility 3 | . 2 . 1 Weapon 11 | . 6 1 4 Tool/Special . | . . . . Average Slot Usage (%) 95 | . 95 100 73 Engine 13 | . 14 14 9 Leg 26 | . 28 28 18 Storage 13 | . 14 14 9 Processor 11 | . 9 14 9 Energy Gun 1 | . 5 . . Ballistic Gun 1 | . 4 . . Ballistic Cannon 21 | . 18 24 18 Launcher 1 | . . 2 . Peak Build Rating 14 | . 9 11 14 Average Rating 8 | . 7 8 11 On Entrance 7 | 6 6 8 8 Naked Turns . | . . . . Heaviest Build 24 | 12 21 21 24 Greatest Support 20 | 20 20 20 20 Greatest Overweight (x) 1 | . 1 1 1 Average Overweight (x) . | . . 1 1 Largest Inventory Capacity 10 | . 10 10 10 Average Capacity 9 | . 9 10 10 Most Carried 10 | . 10 10 10 Average Carried 9 | . 8 9 10 Final Capacity 10 | 8 10 10 10 Final Carried 10 | 6 10 10 10 Class Distribution -------------------- 100% | Mutant Dominant Class ---------------- Mutant | -10/Materials Mutant | -10/Subcaves Mutant | -8/Materials Resources | -11 -10 -10 -8 ----------- Run | Yrd Mat Sub Mat Matter Collected 592 | 200 81 256 55 Remotely . | . . . . Salvage Created 478 | . 296 99 83 Parts 23 | . 15 4 4 Haulers Intercepted 2 | . 2 . . Recyclers Shooed . | . . . . Parts Field Recycled . | . . . . Retrieved Matter . | . . . . Parts Self-Destructed 12 | . . 12 . Prevented . | . . . . Kills | -11 -10 -10 -8 ------- Run | Yrd Mat Sub Mat Combat Hostiles Destroyed 11 | . 4 4 3 Cannons 8 | . 3 2 3 AOE 3 | . 1 2 . Classes Destroyed 4 | . 3 1 . Hauler 2 | . 2 . . Recycler 1 | . 1 . . Grunt 8 | . 4 1 3 Subdweller 3 | . . 3 . Best Kill Streak 3 | . 3 2 3 Combat Bots Only 3 | . 2 2 3 Max Kills in Single Turn 1 | . 1 1 1 Gunslinging . | . . . . Exploded 1 | . 1 1 . Melee . | . . . . Uniques/NPCs Destroyed . | . . . . Combat | -11 -10 -10 -8 -------- Run | Yrd Mat Sub Mat Hostile Shots Fired 35 | . 6 15 14 Missed 9 | . 3 2 4 Hits 26 | . 3 13 10 Projectile 26 | . 3 13 10 Critical Strikes 1 | . . 1 . Damage Taken 522 | . 95 280 147 Core 56 | . . 42 14 Absorbed by Shields . | . . . . Core Remaining (%) 91 | 100 . 83 . Volleys Fired 40 | . 13 15 12 Largest 2 | . 2 2 2 Hottest 60 | . 60 60 60 Shots Fired 75 | . 26 25 24 Gun 10 | . 10 . . Cannon 60 | . 16 20 24 Launcher 5 | . . 5 . Special . | . . . . Kinetic 65 | . 21 20 24 Thermal . | . . . . Explosive 5 | . . 5 . Electromagnetic 5 | . 5 . . Robot Hit Streak 12 | . 8 9 12 Robot Miss Streak 2 | . 2 1 2 Penetration Max . | . . . . Secondary Targets . | . . . . Shots Hit Robots 53 | . 18 17 18 Core Hits 20 | . 8 6 6 Critical Kills . | . . . . Critical Parts Destroyed . | . . . . Critical Strikes 6 | . 3 1 2 Blast 5 | . 2 1 2 Corrupt 1 | . 1 . . Melee Attacks . | . . . . Impact . | . . . . Slashing . | . . . . Piercing . | . . . . Sneak Attacks . | . . . . Combat Hostiles . | . . . . Follow-up Attacks . | . . . . Damage Inflicted 1072 | . 327 436 309 Guns 89 | . 89 . . Cannons 783 | . 178 296 309 Explosions 200 | . 60 140 . Melee . | . . . . Ramming . | . . . . Kinetic 818 | . 213 296 309 Thermal 60 | . 60 . . Explosive 140 | . . 140 . Electromagnetic 54 | . 54 . . Impact . | . . . . Slashing . | . . . . Piercing . | . . . . Highest Corruption . | . . . . Average Corruption . | . . . . Corruption Purged . | . . . . Corruption Blocked . | . . . . Overload Shots . | . . . . Overflow Damage . | . . . . Projectiles . | . . . . Explosions . | . . . . Melee . | . . . . Knockbacks 11 | . 2 2 7 Impact . | . . . . Kinetic 10 | . 2 2 6 Secondary 1 | . . . 1 Self-Inflicted Damage 94 | . 54 40 . Shots 3 | . 1 2 . Rammed . | . . . . Targets Rammed 1 | . 1 . . Kicked 1 | . 1 . . Crushed . | . . . . Highest Temperature 21 | . 21 . 6 Average Temperature 7 | . 13 . 3 Received Heat Transfer 186 | . 21 84 81 Siege Activations . | . . . . Martial Activations . | . . . . Shielding Activations . | . . . . Robots Disrupted . | . . . . Combat Hostiles . | . . . . Robots Corrupted . | . . . . Combat Hostiles . | . . . . Parts Fried . | . . . . Impact Corruptions . | . . . . Robots Melted . | . . . . Combat Hostiles . | . . . . Parts Melted . | . . . . Heat Transferred 100 | . 100 . . Parts Sabotaged . | . . . . Parts Stolen . | . . . . Parts Stripped . | . . . . Power Chain Reactions 1 | . 1 . . Alert | -11 -10 -10 -8 ------- Run | Yrd Mat Sub Mat Maximum Alert Level . | . . . . Low Security (%) 100 | . 100 . 100 Level 1 . | . . . . Level 2 . | . . . . Level 3 . | . . . . Level 4 . | . . . . Level 5 . | . . . . High Security . | . . . . Max Security . | . . . . Peak Influence 75 | . 75 . 64 Initial . | . . . . Average 19 | . 22 . 10 Influence Increases 277 | . 173 30 74 Destroy 0b10 Robot/C 160 | . 80 20 60 Destroy 0b10 Robot/NC 15 | . 15 . . Destroy Leader 44 | . 24 10 10 Successful Hack 21 | . 21 . . Disable Machine 15 | . 15 . . Destroy Structure 7 | . 3 . 4 Lose Combat Pursuer 15 | . 15 . . Influence Decreases 223 | . 173 30 20 Time Decay 223 | . 173 30 20 Squads Dispatched 2 | . 1 . 1 Investigation . | . . . . Extermination . | . . . . Reinforcement 2 | . 1 . 1 Assault . | . . . . Garrison . | . . . . Intercept . | . . . . Searches Triggered . | . . . . Construction Impeded . | . . . . Haulers Reinforced . | . . . . Active Scanning Responses . | . . . . Cargo Convoy Interrupts . | . . . . Stealth | -11 -10 -10 -8 --------- Run | Yrd Mat Sub Mat Distress Signals 1 | . . . 1 Communications Jammed . | . . . . Distress Signals . | . . . . Times Spotted 20 | . 9 5 6 Peak Tracking Total 4 | . 3 2 4 Tactical Retreats 1 | . 1 . . Traps | -11 -10 -10 -8 ------- Run | Yrd Mat Sub Mat Traps Triggered . | . . . . Indirectly . | . . . . Trap Hack Attempts . | . . . . Triggered . | . . . . Disarmed . | . . . . Reprogrammed . | . . . . Reused . | . . . . Traps Extracted . | . . . . Installed . | . . . . Triggered . | . . . . Machines | -11 -10 -10 -8 ---------- Run | Yrd Mat Sub Mat Machines Disabled 1 | . 1 . . Max in Single Turn 1 | . 1 . . Machines Repaired . | . . . . Machines Dismantled . | . . . . Machines Sabotaged . | . . . . Overloaded Fab Kills . | . . . . Hacking | -11 -10 -10 -8 --------- Run | Yrd Mat Sub Mat Machines Accessed 3 | . 2 . 1 Terminals 3 | . 2 . 1 Fabricators . | . . . . Repair Stations . | . . . . Recycling Units . | . . . . Scanalyzers . | . . . . Garrison Access . | . . . . Total Hacks 6 | . 4 . 2 Successful 3 | . 3 . . Failed 3 | . 1 . 2 Catastrophic 1 | . . . 1 Database Lockouts . | . . . . Manual . | . . . . Terminals 6 | . 4 . 2 Fabricators . | . . . . Repair Stations . | . . . . Recycling Units . | . . . . Scanalyzers . | . . . . Garrison Access . | . . . . Terminal Hacks 3 | . 3 . . Emergency Access Points 1 | . 1 . . Locate Traps 1 | . 1 . . Registered Components 1 | . 1 . . Fabricator Hacks . | . . . . Repair Station Hacks . | . . . . Recycling Unit Hacks . | . . . . Scanalyzer . | . . . . Garrison Access Hacks . | . . . . Unauthorized Hacks . | . . . . Terminals . | . . . . Fabricators . | . . . . Repair Stations . | . . . . Recycling Units . | . . . . Scanalyzers . | . . . . Garrison Access . | . . . . Data Cores Recovered . | . . . . Used . | . . . . Hacking Detections 2 | . 1 . 1 Full Trace Events . | . . . . Feedback Events . | . . . . Feedback Blocked . | . . . . Robot Schematics Acquired . | . . . . Robots Built . | . . . . Authchips . | . . . . Time . | . . . . Total Robot Build Rating . | . . . . Part Schematics Acquired . | . . . . Parts Built . | . . . . Authchips . | . . . . Time . | . . . . Total Part Build Rating . | . . . . Parts Repaired . | . . . . Time . | . . . . Parts Recycled . | . . . . Recycled Matter . | . . . . Retrieved Matter . | . . . . Retrieved Components . | . . . . Parts Scanalyzed . | . . . . Part Schematics Acquired . | . . . . Parts Damaged . | . . . . Bothacking | -11 -10 -10 -8 ------------ Run | Yrd Mat Sub Mat Used RIF Installer . | . . . . Robots Hacked . | . . . . Non-combat . | . . . . Combat . | . . . . Robot Hacks Applied . | . . . . Relay Couplers Released . | . . . . Fabnet Peak Effective % . | . . . . Robots Rewired . | . . . . Allies Hacked . | . . . . Hacks Repelled . | . . . . Allies | -11 -10 -10 -8 -------- Run | Yrd Mat Sub Mat Total Allies . | . . . . Largest Group . | . . . . Highest-Rated Group . | . . . . Highest-Rated Ally . | . . . . Total Orders . | . . . . Ally Attacks . | . . . . Total Damage . | . . . . Kills . | . . . . Allies Corrupted . | . . . . Allies Melted . | . . . . Intel | -11 -10 -10 -8 ------- Run | Yrd Mat Sub Mat Active Infowar (turns) . | . . . . Robot Analysis Total . | . . . . Derelict Logs Recovered 1 | . . 1 . Drone Launches . | . . . . Drone Recoveries . | . . . . Exploration | -11 -10 -10 -8 ------------- Run | Yrd Mat Sub Mat Turns Passed 1492 | . 556 759 177 Spaces Moved 713 | 1 272 371 69 Core . | . . . . Treads . | . . . . Legs 713 | 1 272 371 69 Wheels . | . . . . Hover . | . . . . Flight . | . . . . Fastest Speed 120 | 120 120 190 190 Average Speed 174 | 120 150 190 190 Slowest Speed 190 | 120 190 190 190 Overloaded Moves . | . . . . Propulsion Burnouts . | . . . . Robots Hopped . | . . . . Potential Cave-ins . | . . . . Cave-ins Triggered . | . . . . Exploration Rate (%) 22 | 2 50 28 9 Regions Visited 3 Branch Regions 1 Pre-discovered Areas . | . . . . Known Exits Taken . | . . . . Unknown Exits Taken 3 | 1 1 1 . Scrap Searched 1 | . . 1 . Spaces Dug 16 | . . 16 . Terrain Destroyed 39 | . 2 37 . Melee . | . . . . Projectile . | . . . . AOE 39 | . 2 37 . Terrain Rammed . | . . . . Walls Destroyed . | . . . . Machines Disabled . | . . . . Actions | -11 -10 -10 -8 --------- Run | Yrd Mat Sub Mat Total 887 | . 399 399 89 Wait 89 | . 81 2 6 Move 710 | . 271 370 69 Hop . | . . . . Pick Up 16 | . 14 2 . Fast Attach 6 | . 3 1 2 Attach 1 | . 1 . . Detach . | . . . . Swap 8 | . 2 6 . Drop 16 | . 13 3 . Fire 40 | . 13 15 12 Melee . | . . . . Ram . | . . . . Kick 1 | . 1 . . Crush . | . . . . Escape Stasis . | . . . . Rewire . | . . . . Trap . | . . . . Miscellaneous . | . . . . Route ------- -11/Scrapyard -10/Materials (discovered 2 exits: [*Mat] / [*Sub]) -10/Subcaves (discovered 2 exits: *Mat / [Scr]) -8/Materials History --------- Turn | Location | Event 1 | -11/Scrapyard | Discovered new exit (range 0) 1 | -11/Scrapyard | Entered Materials 98 | -10/Materials | Discovered new exit (range 15) 305 | -10/Materials | Build established: Mutant 534 | -10/Materials | Discovered new exit (range 11) 557 | -10/Materials | Entered Subcaves 558 | -10/Subcaves | Shifting Twisted Machinery released Riot Gun 558 | -10/Subcaves | Approached by a straggling Scientist 733 | -10/Subcaves | Shifting Twisted Machinery released Flamer 982 | -10/Subcaves | Learned 2 Materials zone layouts 1246 | -10/Subcaves | Ambushed by Subdweller buried in earth 1282 | -10/Subcaves | Discovered new exit (range 2) 1316 | -10/Subcaves | Entered Materials 1316 | -8/Materials | Evolved 4 slots: Propulsion x1, Utility x3 1493 | -8/Materials | Self-destructed Last Messages --------------- 01344_ ALERT: Hostiles spotted, dispatching reinforcements to Terminal M002. 01344_ O-24 Administrator locks terminal. 01351_ Acquired Imp. Light Armor Plating. 01360_ Acquired 1 matter. 01411_ Acquired Hacking Suite. 01431_ W-25 Informer sends out distress signal. 01447_ G-47 Trooper knocked back. 01450_ G-47 Trooper suffers critical hit (Blast). 01450_ G-47 Trooper destroyed. 01453_ G-47 Trooper knocked back. 01462_ G-47 Trooper destroyed. 01463_ Acquired 27 matter. 01468_ G-47 Trooper knocked back. 01474_ G-47 Trooper destroyed. 01481_ Acquired 2 matter. 01485_ Acquired 17 matter. 01488_ Slug penetrates Terminal. 01489_ Acquired 8 matter. Map ----- +----------------------------------------------------+ | ?????????????????????????????????????????????????? | | ?????????????????????????????????????????????????? | | ?????????????????????????????????????????????????? | | ?????????????????????????????????????????????????? | | ?????????????????????????????????????????????????? | | ?????????????????????????????????????????????????? | | ?????????????????????????????????????????????????? | | ?????????????????????????????????????????????????? | | ?????????????????????????????????????????????????? | | ?????????????????????????????????????????????????? | | ?????????????????????????????????????????????????? | | ?????????????????????????????????????????????????? | | ?????????????????????????????????????????????????? | | ???????????????????????????###### ???????????????? | | ??????????????????????????? // #?????????????? | | ????????????????#####????## // #?????????????? | | ????????????????# # / #?????????????? | | ????????????????# """"""" # +?????????????? | | ????????????????# """"""" # #?????????????? | | ????????????????# """"""" # #?????????????? | | ????????????????# """"""" # ! #?????????????? | | ????????????????# """"""" # #?????????????? | | ????????????????# % # #?????????????? | | ????????????????# %!% # """ #????? ???????? | | ????????????????#######+### """ #### ???????? | | ?????????????????????#*[[@ """ ??????? | | ??????????????????#### %% ??????? | | ??????????????????# % [ ??????? | | ???????????????####+### ??????? | | ???????????????# # ##########????????? | | ???????????????# """ # "" #??####???????????? | | ???????????????# """ # "" #? ??????????? | | ???????????????# """ # "T #?""" ?????????? | | ???????????????# # "" # """ #???????? | | ???????????????# """ # "" # """ #???????? | | ???????????????# """ + + " " #???????? | | ???????????????# """ # # [ "R" #???????? | | ???????????????# ??###### # """ ????????? | | ???????????????# "???????# #? #???????? | | ???????????????#! S????????#####?#########???????? | | ???????????????# "??????????????????????????????? | | ???????????????# ??????????????????????????????? | | ???????????????###???????????????????????????????? | | ?????????????????????????????????????????????????? | | ?????????????????????????????????????????????????? | | ?????????????????????????????????????????????????? | | | | | | | | | +----------------------------------------------------+ Best States ------------- Heat Dissipation 39 Energy Generation 10 Energy Capacity 250 Matter Stores 300 Matter Capacity 300 Sight Range 16 Terrain Scan Density 10 Armor Coverage 150 Evasion (%) 55 Targeting Accuracy 5 Offensive Hacking 10 Item Schematics ----------------- None Robot Schematics ------------------ None Fabricated ------------ Nothing Repaired ---------- Nothing Alien Tech Used ----------------- None Achievements -------------- None Challenges ------------ None Game ------ Seed ThrowingMatterBattery Manual? 0 Play Time 00:13:24 Cumulative 416.4 hours Start 2025.07.26 @ 23:06:49 End 2025.07.26 @ 23:19:59 Sessions 1 Manual Loads 0 Difficulty Rogue Special Mode None Game No. 230 Rogue 230 Adventurer 0 Explorer 0 Win Type - Total 11 Types 10/0/1/0/0/0/0/0/0/0 Lore% 43 Gallery% 63 Achievement% 52 Wizard Run 0 Options --------- Layout 1 ASCII 0 Keyboard 0 Movement Numpad Keybinds 0 Fullscreen 1 Font 24/Smallcaps Map View 50x35 Zoom Use 0% Tactical HUD 1 Map Filters NONE Filters NONE Steam 1 RUN: 31c35413-e88a-44d9-aa8b-8db8f5973816